fUST/lending_fUST_20260513
["ID","MTS","AMOUNT","RATE_DAILY","PERIOD"]
[422138869,1778611857000,-500.0,0.0001178,2]
[422138835,1778611857000,-500.0,0.0001178,2]
[422138865,1778611857000,-500.0,0.0001178,2]
[422138849,1778611857000,-500.0,0.0001178,2]
[422138769,1778611857000,-500.0,0.0001178,2]
[422138847,1778611857000,-740.53,0.0001178,2]
[422138781,1778611857000,-500.0,0.0001178,2]
[422138785,1778611857000,-500.0,0.0001178,2]
[422138783,1778611857000,-500.0,0.0001178,2]
[422138791,1778611857000,-749.6027,0.0001178,2]
[422138787,1778611857000,-500.0,0.0001178,2]
[422138797,1778611857000,-500.0,0.0001178,2]
[422138789,1778611857000,-500.0,0.0001178,2]
[422138793,1778611857000,-500.0,0.0001178,2]
[422138802,1778611857000,-500.0,0.0001178,2]
[422138799,1778611857000,-500.0,0.0001178,2]
[422138801,1778611857000,-500.0,0.0001178,2]
[422138806,1778611857000,-389.56909238,0.0001178,2]
[422138804,1778611857000,-500.0,0.0001178,2]
[422138795,1778611857000,-500.0,0.0001178,2]
[422138818,1778611857000,-500.0,0.0001178,2]
[422138833,1778611857000,-500.0,0.0001178,2]
[422138808,1778611857000,-500.0,0.0001178,2]
[422138831,1778611857000,-500.0,0.0001178,2]
[422138829,1778611857000,-500.0,0.0001178,2]
[422138827,1778611857000,-621.41367727,0.0001178,2]
[422138825,1778611857000,-542.66556027,0.0001178,2]
[422138821,1778611857000,-724.34,0.0001178,2]
[422138845,1778611857000,-500.0,0.0001178,2]
[422138823,1778611857000,-500.0,0.0001178,2]
[422138812,1778611857000,-1723.44,0.0001178,2]
[422138810,1778611857000,-500.0,0.0001178,2]
[422138814,1778611857000,-500.0,0.0001178,2]
[422138820,1778611857000,-500.0,0.0001178,2]
[422138816,1778611857000,-500.0,0.0001178,2]
[422138979,1778611858000,-500.0,0.0001178,2]
[422138988,1778611858000,-778.08,0.0001178,2]
[422138987,1778611858000,-500.0,0.0001178,2]
[422138975,1778611858000,-500.0,0.0001178,2]
[422138966,1778611858000,-500.0,0.0001178,2]
[422138985,1778611858000,-500.0,0.0001178,2]
[422138973,1778611858000,-500.0,0.0001178,2]
[422138968,1778611858000,-500.0,0.0001178,2]
[422138970,1778611858000,-500.0,0.0001178,2]
[422138983,1778611858000,-500.0,0.0001178,2]
[422138981,1778611858000,-500.0,0.0001178,2]
[422138989,1778611858000,-500.0,0.0001178,2]
[422138971,1778611858000,-500.0,0.0001178,2]
[422138990,1778611858000,-500.0,0.0001178,2]
[422139019,1778611858000,-500.0,0.0001178,2]
[422138994,1778611858000,-500.0,0.0001178,2]
[422138993,1778611858000,-500.0,0.0001178,2]
[422139001,1778611858000,-500.0,0.0001178,2]
[422138996,1778611858000,-500.0,0.0001178,2]
[422139005,1778611858000,-500.0,0.0001178,2]
[422139002,1778611858000,-500.0,0.0001178,2]
[422139004,1778611858000,-1521.5,0.0001178,2]
[422138998,1778611858000,-966.13,0.0001178,2]
[422139007,1778611858000,-657.58,0.0001178,2]
[422138999,1778611858000,-500.0,0.0001178,2]
[422138997,1778611858000,-500.0,0.0001178,2]
[422139008,1778611858000,-500.0,0.0001178,2]
[422139018,1778611858000,-500.0,0.0001178,2]
[422138977,1778611858000,-500.0,0.0001178,2]
[422138992,1778611858000,-500.0,0.0001178,2]
[422138962,1778611858000,-500.0,0.0001178,2]
[422138902,1778611858000,-500.0,0.0001178,2]
[422138958,1778611858000,-500.0,0.0001178,2]
[422139021,1778611858000,-500.0,0.0001178,2]
[422138904,1778611858000,-500.0,0.0001178,2]
[422138908,1778611858000,-500.0,0.0001178,2]
[422138910,1778611858000,-500.0,0.0001178,2]
[422138906,1778611858000,-514.5,0.0001178,2]
[422138912,1778611858000,-500.0,0.0001178,2]
[422138923,1778611858000,-500.0,0.0001178,2]
[422138925,1778611858000,-500.0,0.0001178,2]
[422138929,1778611858000,-500.0,0.0001178,2]
[422138921,1778611858000,-500.0,0.0001178,2]
[422138916,1778611858000,-500.0,0.0001178,2]
[422138918,1778611858000,-500.0,0.0001178,2]
[422138927,1778611858000,-500.0,0.0001178,2]
[422138920,1778611858000,-500.0,0.0001178,2]
[422138964,1778611858000,-782.61,0.0001178,2]
[422138914,1778611858000,-500.0,0.0001178,2]
[422138933,1778611858000,-500.0,0.0001178,2]
[422138935,1778611858000,-500.0,0.0001178,2]
[422138937,1778611858000,-500.0,0.0001178,2]
[422138941,1778611858000,-500.0,0.0001178,2]
[422138943,1778611858000,-500.0,0.0001178,2]
[422138946,1778611858000,-500.0,0.0001178,2]
[422138948,1778611858000,-545.43,0.0001178,2]
[422138945,1778611858000,-500.0,0.0001178,2]
[422138950,1778611858000,-500.0,0.0001178,2]
[422138939,1778611858000,-500.0,0.0001178,2]
[422138960,1778611858000,-500.0,0.0001178,2]
[422138956,1778611858000,-500.0,0.0001178,2]
[422138954,1778611858000,-1252.07,0.0001178,2]
[422138952,1778611858000,-500.0,0.0001178,2]
[422138931,1778611858000,-2810.06,0.0001178,2]
[422139016,1778611858000,-500.0,0.0001178,2]
[422139042,1778611858000,-500.0,0.0001178,2]
[422139023,1778611858000,-500.0,0.0001178,2]
[422139087,1778611858000,-500.0,0.0001178,2]
[422139079,1778611858000,-500.0,0.0001178,2]
[422139074,1778611858000,-500.0,0.0001178,2]
[422139081,1778611858000,-500.0,0.0001178,2]
[422139078,1778611858000,-301.57168527,0.0001178,2]
[422139089,1778611858000,-500.0,0.0001178,2]
[422139083,1778611858000,-500.0,0.0001178,2]
[422139085,1778611858000,-500.0,0.0001178,2]
[422139076,1778611858000,-734.5,0.0001178,2]
[422139092,1778611858000,-500.0,0.0001178,2]
[422139090,1778611858000,-500.0,0.0001178,2]
[422139093,1778611858000,-500.0,0.0001178,2]
[422139106,1778611858000,-500.0,0.0001178,2]
[422139108,1778611858000,-683.58,0.0001178,2]
[422139098,1778611858000,-500.0,0.0001178,2]
[422139012,1778611858000,-502.42204984,0.0001178,2]
[422139097,1778611858000,-475.00937814,0.0001178,2]
[422139110,1778611858000,-500.0,0.0001178,2]
[422139112,1778611858000,-500.0,0.0001178,2]
[422139102,1778611858000,-500.0,0.0001178,2]
[422139100,1778611858000,-500.0,0.0001178,2]
[422139104,1778611858000,-500.0,0.0001178,2]
[422139116,1778611858000,-500.0,0.0001178,2]
[422139126,1778611858000,-500.0,0.0001178,2]
[422139119,1778611858000,-500.0,0.0001178,2]
[422139117,1778611858000,-500.0,0.0001178,2]
[422139124,1778611858000,-500.0,0.0001178,2]
[422139122,1778611858000,-500.0,0.0001178,2]
[422139121,1778611858000,-500.0,0.0001178,2]
[422139072,1778611858000,-500.0,0.0001178,2]
[422139070,1778611858000,-500.0,0.0001178,2]
[422139114,1778611858000,-500.0,0.0001178,2]
[422139051,1778611858000,-500.0,0.0001178,2]
[422139068,1778611858000,-500.0,0.0001178,2]
[422139013,1778611858000,-500.0,0.0001178,2]
[422139009,1778611858000,-500.0,0.0001178,2]
[422139022,1778611858000,-500.0,0.0001178,2]
[422139025,1778611858000,-500.0,0.0001178,2]
[422139011,1778611858000,-500.0,0.0001178,2]
[422139015,1778611858000,-2662.95,0.0001178,2]
[422139029,1778611858000,-500.0,0.0001178,2]
[422139027,1778611858000,-500.0,0.0001178,2]
[422139030,1778611858000,-500.0,0.0001178,2]
[422139038,1778611858000,-500.0,0.0001178,2]
[422139039,1778611858000,-500.0,0.0001178,2]
[422139044,1778611858000,-500.0,0.0001178,2]
[422139037,1778611858000,-500.0,0.0001178,2]
[422139041,1778611858000,-500.0,0.0001178,2]
[422139026,1778611858000,-500.0,0.0001178,2]
[422139031,1778611858000,-500.0,0.0001178,2]
[422139053,1778611858000,-500.0,0.0001178,2]
[422139034,1778611858000,-500.0,0.0001178,2]
[422139055,1778611858000,-500.37730503,0.0001178,2]
[422139066,1778611858000,-500.0,0.0001178,2]
[422139064,1778611858000,-500.0,0.0001178,2]
[422139047,1778611858000,-500.0,0.0001178,2]
[422139062,1778611858000,-2719.12,0.0001178,2]
[422139049,1778611858000,-500.0,0.0001178,2]
[422139061,1778611858000,-500.0,0.0001178,2]
[422139059,1778611858000,-500.0,0.0001178,2]
[422139057,1778611858000,-500.0,0.0001178,2]
[422139046,1778611858000,-500.0,0.0001178,2]
[422139033,1778611858000,-500.0,0.0001178,2]
[422139035,1778611858000,-500.0,0.0001178,2]
[422139166,1778611859000,-1020.91,0.0001178,2]
[422139165,1778611859000,-500.0,0.0001178,2]
[422139164,1778611859000,-500.0,0.0001178,2]
[422139162,1778611859000,-813.41,0.0001178,2]
[422139168,1778611859000,-500.0,0.0001178,2]
[422139163,1778611859000,-500.0,0.0001178,2]
[422139172,1778611859000,-1211.31,0.0001178,2]
[422139174,1778611859000,-500.0,0.0001178,2]
[422139167,1778611859000,-4091.18,0.0001178,2]
[422139169,1778611859000,-500.0,0.0001178,2]
[422139176,1778611859000,-500.0,0.0001178,2]
[422139178,1778611859000,-500.0,0.0001178,2]
[422139183,1778611859000,-500.0,0.0001178,2]
[422139181,1778611859000,-500.0,0.0001178,2]
[422139161,1778611859000,-500.0,0.0001178,2]
[422139170,1778611859000,-500.0,0.0001178,2]
[422139158,1778611859000,-500.0,0.0001178,2]
[422139132,1778611859000,-500.0,0.0001178,2]
[422139155,1778611859000,-4201.15,0.0001178,2]
[422139128,1778611859000,-500.0,0.0001178,2]
[422139130,1778611859000,-500.0,0.0001178,2]
[422139134,1778611859000,-500.0,0.0001178,2]
[422139137,1778611859000,-500.0,0.0001178,2]
[422139136,1778611859000,-500.0,0.0001178,2]
[422139141,1778611859000,-500.0,0.0001178,2]
[422139143,1778611859000,-500.0,0.0001178,2]
[422139153,1778611859000,-500.0,0.0001178,2]
[422139139,1778611859000,-500.0,0.0001178,2]
[422139147,1778611859000,-500.0,0.0001178,2]
[422139150,1778611859000,-500.0,0.0001178,2]
[422139149,1778611859000,-2478.94,0.0001178,2]
[422139159,1778611859000,-500.0,0.0001178,2]
[422139151,1778611859000,-2129.21,0.0001178,2]
[422139157,1778611859000,-500.0,0.0001178,2]
[422139152,1778611859000,-362.56264057,0.0001178,2]
[422139145,1778611859000,-500.0,0.0001178,2]
[422139180,1778611859000,-500.0,0.0001178,2]
[422139189,1778611859000,-500.0,0.0001178,2]
[422139196,1778611859000,-500.0,0.0001178,2]
[422139217,1778611859000,-500.0,0.0001178,2]
[422139221,1778611859000,-500.0,0.0001178,2]
[422139222,1778611859000,-500.0,0.0001178,2]
[422139223,1778611859000,-5985.01873216,0.0001178,2]
[422139225,1778611859000,-500.0,0.0001178,2]
[422139224,1778611859000,-256.41126784,0.0001178,2]
[422139231,1778611859000,-500.0,0.0001178,2]
[422139218,1778611859000,-500.0,0.0001178,2]
[422139228,1778611859000,-500.0,0.0001178,2]
[422139229,1778611859000,-500.0,0.0001178,2]
[422139230,1778611859000,-500.0,0.0001178,2]
[422139227,1778611859000,-1047.0,0.0001178,2]
[422139233,1778611859000,-500.0,0.0001178,2]
[422139232,1778611859000,-500.0,0.0001178,2]
[422139234,1778611859000,-18.66827607,0.0001178,2]
[422139191,1778611859000,-500.0,0.0001178,2]
[422139226,1778611859000,-500.0,0.0001178,2]
[422139208,1778611859000,-500.0,0.0001178,2]
[422139203,1778611859000,-500.0,0.0001178,2]
[422139204,1778611859000,-500.0,0.0001178,2]
[422139187,1778611859000,-500.0,0.0001178,2]
[422139195,1778611859000,-500.0,0.0001178,2]
[422139185,1778611859000,-500.0,0.0001178,2]
[422139200,1778611859000,-500.0,0.0001178,2]
[422139201,1778611859000,-559.75,0.0001178,2]
[422139213,1778611859000,-500.0,0.0001178,2]
[422139206,1778611859000,-2910.71,0.0001178,2]
[422139198,1778611859000,-500.0,0.0001178,2]
[422139210,1778611859000,-578.23,0.0001178,2]
[422139215,1778611859000,-500.0,0.0001178,2]
[422139214,1778611859000,-500.0,0.0001178,2]
[422139219,1778611859000,-500.0,0.0001178,2]
[422139193,1778611859000,-500.0,0.0001178,2]
[422139220,1778611859000,-500.0,0.0001178,2]
[422139216,1778611859000,-1898.43,0.0001178,2]
[422139211,1778611859000,-500.0,0.0001178,2]
[422139242,1778611860000,-1960.79175384,0.0001178,2]
[422139240,1778611860000,-611.357136,0.0001178,2]
[422139238,1778611860000,-314.0,0.00011294,2]
[422139239,1778611860000,-315.0,0.00011294,2]
[422139235,1778611860000,-314.0,0.00011294,2]
[422139237,1778611860000,-129.31433912,0.0001178,2]
[422139236,1778611860000,-481.33172393,0.0001178,2]
[422139241,1778611860000,-600.0,0.00011176,2]
[422139244,1778611975000,425.3937035,0.00014,30]
[422139245,1778611994000,3000.0,0.00014,30]
[422139251,1778612743000,33938.06114604,0.0001,30]
[422139339,1778613032000,-300.0,7.751e-05,2]
[422139341,1778613032000,-300.0,7.751e-05,2]
[422139324,1778613032000,-300.0,7.751e-05,2]
[422139337,1778613032000,-300.0,7.751e-05,2]
[422139335,1778613032000,-300.0,7.751e-05,2]
[422139323,1778613032000,-300.0,7.751e-05,2]
[422139321,1778613032000,-300.0,7.751e-05,2]
[422139319,1778613032000,-300.0,7.751e-05,2]
[422139316,1778613032000,-3892.79554599,7.659e-05,2]
[422139309,1778613032000,-300.0,7.599e-05,2]
[422139318,1778613032000,-300.0,7.751e-05,2]
[422139317,1778613032000,-300.0,7.751e-05,2]
[422139303,1778613032000,-3385.79485196,7.459e-05,2]
[422139314,1778613032000,-6122.56148869,7.6e-05,2]
[422139313,1778613032000,-526.0,7.599e-05,2]
[422139307,1778613032000,-3622.29859128,7.559e-05,2]
[422139305,1778613032000,-377.3828445,7.487e-05,2]
[422139300,1778613032000,-4804.83469413,7.375e-05,2]
[422139298,1778613032000,-195.16530587,7.375e-05,2]
[422139294,1778613032000,-538.03399353,7.359e-05,2]
[422139292,1778613032000,-682.96600647,7.301e-05,2]
[422139296,1778613032000,-1158.30753838,7.359e-05,2]
[422139311,1778613032000,-300.0,7.599e-05,2]
[422139327,1778613032000,-300.0,7.751e-05,2]
[422139349,1778613032000,-5075.24817201,8.197e-05,2]
[422139329,1778613032000,-300.0,7.751e-05,2]
[422139364,1778613032000,-445.31175651,9.487e-05,2]
[422139362,1778613032000,-10000.0,9.339e-05,2]
[422139363,1778613032000,-6764.70149205,9.396e-05,2]
[422139366,1778613032000,-500.0,9.589e-05,2]
[422139365,1778613032000,-2891.0462154,9.507e-05,2]
[422139342,1778613032000,-300.0,7.751e-05,2]
[422139361,1778613032000,-587.0,9.195e-05,2]
[422139359,1778613032000,-215.4257,9.131e-05,2]
[422139358,1778613032000,-34.13990999,8.997e-05,2]
[422139357,1778613032000,-6511.14164283,8.997e-05,2]
[422139352,1778613032000,-2688.4225,8.411e-05,2]
[422139350,1778613032000,-420.0,8.359e-05,2]
[422139360,1778613032000,-250.20248674,9.132e-05,2]
[422139354,1778613032000,-465.0,8.5e-05,7]
[422139355,1778613032000,-5452.46448371,8.597e-05,2]
[422139333,1778613032000,-300.0,7.751e-05,2]
[422139331,1778613032000,-300.0,7.751e-05,2]
[422139346,1778613032000,-4433.78945566,7.859e-05,2]
[422139348,1778613032000,-4976.3227713,8.059e-05,2]
[422139345,1778613032000,-4163.29250083,7.759e-05,2]
[422139347,1778613032000,-4705.73951111,7.959e-05,2]
[422139353,1778613032000,-152.0,8.473e-05,7]
[422139351,1778613032000,-420.0,8.359e-05,2]
[422139356,1778613032000,-2787.8941325,8.959e-05,2]
[422139373,1778613033000,-8454.1548121,0.00010196,2]
[422139377,1778613033000,-151.937,0.00010505,2]
[422139374,1778613033000,-151.5,0.00010483,2]
[422139372,1778613033000,-440.0,0.00010114,2]
[422139380,1778613033000,-2202.0,0.00010505,2]
[422139381,1778613033000,-443.0,0.00010505,2]
[422139367,1778613033000,-600.0,9.779e-05,2]
[422139371,1778613033000,-2998.01492537,0.00010055,2]
[422139370,1778613033000,-31633.77505029,0.0001,2]
[422139369,1778613033000,-2000.0,0.0001,2]
[422139368,1778613033000,-7638.09862192,9.796e-05,2]
[422139379,1778613033000,-1412.0,0.00010505,2]
[422139382,1778613033000,-741.0,0.00010505,2]
[422139378,1778613033000,-647.0,0.00010505,2]
[422139390,1778613033000,-179.24543093,0.00010711,2]
[422139376,1778613033000,-150.572,0.00010505,2]
[422139375,1778613033000,-259.80713501,0.00010483,2]
[422139395,1778613033000,-319.10372721,9.778e-05,2]
[422139393,1778613033000,-253.08869634,9.778e-05,2]
[422139392,1778613033000,-36288.72361267,0.00010744,2]
[422139394,1778613033000,-246.91130366,9.778e-05,2]
[422139389,1778613033000,-557.5788265,0.00010662,2]
[422139391,1778613033000,-578.20924308,0.00010717,2]
[422139385,1778613033000,-8730.33115545,0.00010595,2]
[422139387,1778613033000,-537.6845,0.00010607,2]
[422139386,1778613033000,-3108.94147761,0.00010603,2]
[422139383,1778613033000,-185.0,0.00010505,2]
[422139384,1778613033000,-500.0,0.00010505,2]
[422139388,1778613033000,-2442.89824113,0.00010652,2]
[422139422,1778613038000,-500.0,9.778e-05,2]
[422139423,1778613038000,-500.0,9.778e-05,2]
[422139420,1778613038000,-500.0,9.778e-05,2]
[422139426,1778613038000,-500.0,9.778e-05,2]
[422139421,1778613038000,-500.0,9.778e-05,2]
[422139425,1778613038000,-500.0,9.778e-05,2]
[422139418,1778613038000,-500.0,9.778e-05,2]
[422139415,1778613038000,-500.0,9.778e-05,2]
[422139430,1778613038000,-500.0,9.778e-05,2]
[422139419,1778613038000,-618.18237112,9.778e-05,2]
[422139417,1778613038000,-567.61150945,9.778e-05,2]
[422139416,1778613038000,-500.0,9.778e-05,2]
[422139424,1778613038000,-500.0,9.778e-05,2]
[422139413,1778613038000,-180.89627279,9.778e-05,2]
[422139414,1778613038000,-500.0,9.778e-05,2]
[422139429,1778613038000,-500.0,9.778e-05,2]
[422139431,1778613038000,-208.74631701,9.778e-05,2]
[422139427,1778613038000,-500.0,9.778e-05,2]
[422139444,1778613038000,-500.0,9.778e-05,2]
[422139433,1778613038000,-500.0,9.778e-05,2]
[422139449,1778613038000,-500.0,9.778e-05,2]
[422139448,1778613038000,-500.0,9.778e-05,2]
[422139446,1778613038000,-500.0,9.778e-05,2]
[422139445,1778613038000,-500.0,9.778e-05,2]
[422139442,1778613038000,-500.0,9.778e-05,2]
[422139440,1778613038000,-500.0,9.778e-05,2]
[422139437,1778613038000,-500.0,9.778e-05,2]
[422139447,1778613038000,-500.0,9.778e-05,2]
[422139439,1778613038000,-500.0,9.778e-05,2]
[422139435,1778613038000,-593.78821,9.778e-05,2]
[422139441,1778613038000,-500.0,9.778e-05,2]
[422139438,1778613038000,-500.0,9.778e-05,2]
[422139436,1778613038000,-509.02470673,9.778e-05,2]
[422139432,1778613038000,-500.0,9.778e-05,2]
[422139434,1778613038000,-500.0,9.778e-05,2]
[422139443,1778613038000,-622.1507349,9.778e-05,2]
[422139464,1778613039000,-500.0,9.778e-05,2]
[422139463,1778613039000,-500.0,9.778e-05,2]
[422139465,1778613039000,-500.0,9.778e-05,2]
[422139466,1778613039000,-500.0,9.778e-05,2]
[422139468,1778613039000,-500.0,9.778e-05,2]
[422139469,1778613039000,-500.0,9.778e-05,2]
[422139470,1778613039000,-500.0,9.778e-05,2]
[422139459,1778613039000,-500.0,9.778e-05,2]
[422139467,1778613039000,-500.0,9.778e-05,2]
[422139460,1778613039000,-500.0,9.778e-05,2]
[422139451,1778613039000,-500.0,9.778e-05,2]
[422139461,1778613039000,-500.0,9.778e-05,2]
[422139458,1778613039000,-500.0,9.778e-05,2]
[422139456,1778613039000,-500.0,9.778e-05,2]
[422139453,1778613039000,-500.0,9.778e-05,2]
[422139454,1778613039000,-500.0,9.778e-05,2]
[422139452,1778613039000,-500.0,9.778e-05,2]
[422139455,1778613039000,-500.0,9.778e-05,2]
[422139450,1778613039000,-500.0,9.778e-05,2]
[422139457,1778613039000,-500.0,9.778e-05,2]
[422139472,1778613039000,-500.0,9.778e-05,2]
[422139462,1778613039000,-500.0,9.778e-05,2]
[422139476,1778613039000,-500.0,9.778e-05,2]
[422139471,1778613039000,-500.0,9.778e-05,2]
[422139474,1778613039000,-500.0,9.778e-05,2]
[422139492,1778613039000,-500.0,0.00010744,2]
[422139493,1778613039000,-500.0,0.00010744,2]
[422139495,1778613039000,-500.0,0.00010744,2]
[422139486,1778613039000,-500.0,0.00010744,2]
[422139494,1778613039000,-500.0,0.00010744,2]
[422139491,1778613039000,-500.0,0.00010744,2]
[422139490,1778613039000,-500.0,0.00010744,2]
[422139489,1778613039000,-500.0,0.00010744,2]
[422139496,1778613039000,-29720.33406335,0.00010748,2]
[422139488,1778613039000,-500.0,0.00010744,2]
[422139487,1778613039000,-500.0,0.00010744,2]
[422139482,1778613039000,-500.0,0.00010744,2]
[422139484,1778613039000,-500.0,0.00010744,2]
[422139485,1778613039000,-371.44530765,0.00010744,2]
[422139481,1778613039000,-500.0,0.00010744,2]
[422139480,1778613039000,-500.0,0.00010744,2]
[422139478,1778613039000,-500.0,9.778e-05,2]
[422139497,1778613039000,-706950.78034171,0.00010748,2]
[422139473,1778613039000,-500.0,9.778e-05,2]
[422139475,1778613039000,-500.0,9.778e-05,2]
[422139479,1778613039000,-40133.27638733,0.00010744,2]
[422139477,1778613039000,-500.0,9.778e-05,2]
[422139483,1778613039000,-568.19313227,0.00010744,2]
[422139794,1778614233000,-300.0,9.972e-05,2]
[422139789,1778614233000,-5000.0,8.311e-05,2]
[422139788,1778614233000,-179.24543093,8.143e-05,2]
[422139791,1778614233000,-179.24543092,8.675e-05,2]
[422139796,1778614233000,-300.0,9.973e-05,2]
[422139795,1778614233000,-300.0,9.973e-05,2]
[422139792,1778614233000,-500.0,9.132e-05,2]
[422139790,1778614233000,-360.92895248,8.481e-05,2]
[422139802,1778614233000,-300.0,9.973e-05,2]
[422139798,1778614233000,-300.0,9.973e-05,2]
[422139797,1778614233000,-300.0,9.973e-05,2]
[422139799,1778614233000,-300.0,9.973e-05,2]
[422139801,1778614233000,-300.0,9.973e-05,2]
[422139803,1778614233000,-300.0,9.973e-05,2]
[422139800,1778614233000,-300.0,9.973e-05,2]
[422139804,1778614233000,-137.91706623,9.973e-05,2]
[422139793,1778614233000,-170.313102,9.549e-05,2]
[422139808,1778614238000,-300.0,9.973e-05,2]
[422139807,1778614238000,-162.08293377,9.973e-05,2]
[422139811,1778614238000,-300.0,9.973e-05,2]
[422139809,1778614238000,-300.0,9.973e-05,2]
[422139812,1778614238000,-300.0,9.973e-05,2]
[422139810,1778614238000,-300.0,9.973e-05,2]
[422139815,1778614239000,-213.13049423,0.00010519,2]
[422139813,1778614239000,-600.0,9.973e-05,2]
[422139814,1778614239000,-425.89616392,0.00010481,2]
[422139816,1778614239000,-377.74952859,0.00010548,2]
[422139818,1778614239000,-5251.46031477,0.00010548,2]
[422139817,1778614239000,-639.84187099,0.00010548,2]
[422139819,1778614239000,-380.85986131,0.000106,2]
[422139824,1778614239000,-584.453,0.00010647,2]
[422139823,1778614239000,-818.27681062,0.000106,2]
[422139821,1778614239000,-482.51825217,0.000106,2]
[422139820,1778614239000,-848.13715294,0.000106,2]
[422139834,1778614239000,-1357.56281181,0.000108,2]
[422139825,1778614239000,-188.75,0.00010704,2]
[422139826,1778614239000,-2202.0,0.00010706,2]
[422139829,1778614239000,-741.0,0.00010706,2]
[422139827,1778614239000,-647.0,0.00010706,2]
[422139830,1778614239000,-185.0,0.00010706,2]
[422139835,1778614239000,-89420.74872708,0.000108,2]
[422139828,1778614239000,-1412.0,0.00010706,2]
[422139831,1778614239000,-443.0,0.00010706,2]
[422139832,1778614239000,-537.6845,0.00010743,2]
[422139833,1778614239000,-557.5788265,0.00010798,2]
[422139836,1778614239000,-1285.10008273,0.000108,2]
[422139822,1778614239000,-261.40560236,0.000106,2]
[422139877,1778614241000,-616.72155675,9.873e-05,2]
[422139898,1778614247000,-24041.88141115,0.000108,2]
[422139900,1778614247000,-1257.029997,0.000108,2]
[422139897,1778614247000,-4383.27844325,9.873e-05,2]
[422139899,1778614247000,-3788.86986786,0.000108,2]
[422139915,1778614248000,-422.6905,0.000108,2]
[422139916,1778614249000,-1420.96550716,0.000108,2]
[422139917,1778614249000,-366182.11960452,0.000108,2]
[422139925,1778614452000,5000.0,5e-05,2]
[422139926,1778614474000,5000.0,5e-05,2]
[422139927,1778614496000,5000.0,5e-05,2]
[422139928,1778614518000,5000.0,5e-05,2]
[422139929,1778614540000,5000.0,5e-05,2]
[422139930,1778614562000,5000.0,5e-05,2]
[422139931,1778614584000,5000.0,5e-05,2]
[422139932,1778614606000,5000.0,5e-05,2]
[422139933,1778614615000,10000.0,0.00014,30]
[422139934,1778614628000,5000.0,5e-05,2]
[422139936,1778614650000,5000.0,5e-05,2]
[422139937,1778614672000,5000.0,5e-05,2]
[422139938,1778614694000,5000.0,5e-05,2]
[422139944,1778614715000,5000.0,5e-05,2]
[422139946,1778614737000,5000.0,5e-05,2]
[422139947,1778614759000,5000.0,5e-05,2]
[422139948,1778614781000,5000.0,5e-05,2]
[422139949,1778614804000,5000.0,5e-05,2]
[422139950,1778614826000,5000.0,5e-05,2]
[422139951,1778614848000,5000.0,5e-05,2]
[422139952,1778614869000,5000.0,5e-05,2]
[422139953,1778614891000,5000.0,5e-05,2]
[422139954,1778614913000,5000.0,5e-05,2]
[422139955,1778614935000,5000.0,5e-05,2]
[422139956,1778614957000,5000.0,5e-05,2]
[422139957,1778614980000,5000.0,5e-05,2]
[422139958,1778615002000,5000.0,5e-05,2]
[422139960,1778615024000,5000.0,5e-05,2]
[422139962,1778615046000,5000.0,5e-05,2]
[422139963,1778615068000,5000.0,5e-05,2]